fUST/lending_fUST_20251029
["ID","MTS","AMOUNT","RATE_DAILY","PERIOD"]
[392577054,1761684636160,-500.0,0.00021917,2]
[392577055,1761684636169,-1384.85,0.00021917,2]
[392577056,1761684636179,-1494.95,0.00021917,2]
[392577057,1761684636189,-500.0,0.00021917,2]
[392577058,1761684636198,-526.78,0.00021917,2]
[392577059,1761684636207,-921.96,0.00021917,2]
[392577060,1761684636217,-500.0,0.00021917,2]
[392577061,1761684636227,-500.0,0.00021917,2]
[392577062,1761684636236,-500.0,0.00021917,2]
[392577063,1761684636245,-500.0,0.00021917,2]
[392577064,1761684636254,-830.95,0.00021917,2]
[392577065,1761684636263,-1687.31,0.00021917,2]
[392577066,1761684636273,-500.0,0.00021917,2]
[392577067,1761684636282,-500.0,0.00021917,2]
[392577068,1761684636291,-953.15,0.00021917,2]
[392577069,1761684636300,-2031.7,0.00021917,2]
[392577070,1761684636310,-500.0,0.00021917,2]
[392577071,1761684636319,-746.41,0.00021917,2]
[392577072,1761684636328,-1324.25,0.00021917,2]
[392577073,1761684636338,-920.67,0.00021917,2]
[392577074,1761684636347,-1110.59,0.00021917,2]
[392577075,1761684636356,-500.0,0.00021917,2]
[392577076,1761684636365,-500.0,0.00021917,2]
[392577077,1761684636374,-500.0,0.00021917,2]
[392577078,1761684636384,-996.9,0.00021917,2]
[392577079,1761684636394,-1509.24,0.00021917,2]
[392577080,1761684636403,-500.0,0.00021917,2]
[392577081,1761684636412,-555.99,0.00021917,2]
[392577082,1761684636421,-500.0,0.00021917,2]
[392577083,1761684636430,-1004.61,0.00021917,2]
[392577084,1761684636439,-669.33,0.00021917,2]
[392577085,1761684636448,-500.0,0.00021917,2]
[392577086,1761684636458,-597.66,0.00021917,2]
[392577087,1761684636467,-500.0,0.00021917,2]
[392577088,1761684636476,-522.76,0.00021917,2]
[392577089,1761684636485,-500.0,0.00021917,2]
[392577090,1761684636494,-668.12,0.00021917,2]
[392577091,1761684636503,-500.0,0.00021917,2]
[392577092,1761684636519,-966.05,0.00021917,2]
[392577093,1761684636528,-500.0,0.00021973,2]
[392577094,1761684636537,-500.0,0.00021973,2]
[392577095,1761684636547,-500.85750236,0.00021973,2]
[392577096,1761684636559,-500.0,0.00021973,2]
[392577097,1761684636568,-442.97174692,0.00021973,2]
[392577098,1761684636578,-500.0,0.00021973,2]
[392577099,1761684636589,-500.0,0.00021973,2]
[392577100,1761684636598,-500.0,0.00021973,2]
[392577101,1761684636607,-500.0,0.00021973,2]
[392577102,1761684636616,-451.94778134,0.00021973,2]
[392577103,1761684636625,-500.07598891,0.00021973,2]
[392577104,1761684636635,-597.52542925,0.00021973,2]
[392577105,1761684636644,-500.0,0.00021973,2]
[392577106,1761684636655,-500.0,0.00021973,2]
[392577107,1761684636664,-500.0,0.00021973,2]
[392577108,1761684636674,-500.0,0.00021973,2]
[392577109,1761684636683,-501.22472656,0.00021973,2]
[392577110,1761684636692,-500.0,0.00021973,2]
[392577111,1761684636701,-500.0,0.00021973,2]
[392577112,1761684636710,-500.0,0.00021973,2]
[392577113,1761684636719,-500.99717246,0.00021973,2]
[392577114,1761684636729,-500.0,0.00021973,2]
[392577115,1761684636739,-500.0,0.00021973,2]
[392577116,1761684636748,-154.62,0.00022074,2]
[392577117,1761684636757,-25000.00000004,0.00022091,3]
[392577118,1761684636767,-618.2905996,0.00022123,2]
[392577119,1761684636776,-8120.9247551,0.00022157,2]
[392577120,1761684636785,-500.0,0.00022191,2]
[392577121,1761684636794,-540.46,0.00022191,2]
[392577122,1761684636804,-500.0,0.00022191,2]
[392577123,1761684636815,-500.0,0.00022191,2]
[392577124,1761684636824,-500.0,0.00022191,2]
[392577125,1761684636834,-500.0,0.00022191,2]
[392577126,1761684636844,-500.0,0.00022191,2]
[392577127,1761684636853,-575.48,0.00022191,2]
[392577128,1761684636863,-500.0,0.00022191,2]
[392577129,1761684636872,-500.0,0.00022191,2]
[392577130,1761684636881,-500.0,0.00022191,2]
[392577131,1761684636890,-500.0,0.00022191,2]
[392577132,1761684636901,-500.0,0.00022191,2]
[392577133,1761684636910,-540.72879258,0.00022191,2]
[392577134,1761684636921,-500.0,0.00022191,2]
[392577135,1761684636930,-500.0,0.00022191,2]
[392577136,1761684636939,-500.0,0.00022191,2]
[392577137,1761684636949,-500.0,0.00022191,2]
[392577138,1761684636959,-500.0,0.00022191,2]
[392577139,1761684636968,-500.0,0.00022191,2]
[392577140,1761684636978,-500.0,0.00022191,2]
[392577141,1761684636987,-629.19697967,0.00022191,2]
[392577142,1761684636997,-500.0,0.00022191,2]
[392577143,1761684637006,-594.14,0.00022191,2]
[392577144,1761684637016,-500.0,0.00022191,2]
[392577145,1761684637025,-500.0,0.00022191,2]
[392577146,1761684637034,-500.0,0.00022191,2]
[392577147,1761684637043,-500.0,0.00022191,2]
[392577148,1761684637053,-648.27,0.00022191,2]
[392577149,1761684637063,-2433.62,0.00022191,2]
[392577150,1761684637073,-500.0,0.00022191,2]
[392577151,1761684637082,-500.0,0.00022191,2]
[392577152,1761684637091,-500.0,0.00022191,2]
[392577153,1761684637102,-597.29978508,0.00022191,2]
[392577154,1761684637111,-500.0,0.00022191,2]
[392577155,1761684637120,-500.0,0.00022191,2]
[392577156,1761684637129,-500.0,0.00022191,2]
[392577157,1761684637139,-500.0,0.00022191,2]
[392577158,1761684637148,-500.0,0.00022191,2]
[392577159,1761684637158,-500.0,0.00022191,2]
[392577160,1761684637167,-500.0,0.00022191,2]
[392577161,1761684637176,-500.0,0.00022191,2]
[392577162,1761684637186,-500.0,0.00022191,2]
[392577163,1761684637195,-372.64909957,0.00022191,2]
[392577164,1761684637204,-500.0,0.00022191,2]
[392577165,1761684637214,-500.0,0.00022191,2]
[392577166,1761684637224,-500.0,0.00022191,2]
[392577167,1761684637233,-500.0,0.00022191,2]
[392577168,1761684637242,-500.0,0.00022191,2]
[392577169,1761684637252,-500.0,0.00022191,2]
[392577170,1761684637261,-500.0,0.00022191,2]
[392577171,1761684637271,-940.28,0.00022191,2]
[392577172,1761684637280,-500.0,0.00022191,2]
[392577173,1761684637289,-500.0,0.00022191,2]
[392577174,1761684637299,-500.0,0.00022191,2]
[392577175,1761684637308,-580.44,0.00022191,2]
[392577176,1761684637317,-500.0,0.00022191,2]
[392577177,1761684637327,-500.0,0.00022191,2]
[392577178,1761684637336,-500.0,0.00022191,2]
[392577180,1761684637346,-500.0,0.00022191,2]
[392577182,1761684637356,-500.0,0.00022191,2]
[392577184,1761684637367,-500.0,0.00022191,2]
[392577187,1761684637377,-500.0,0.00022191,2]
[392577189,1761684637386,-500.0,0.00022191,2]
[392577191,1761684637398,-500.0,0.00022191,2]
[392577193,1761684637407,-500.0,0.00022191,2]
[392577195,1761684637416,-500.0,0.00022191,2]
[392577197,1761684637425,-500.0,0.00022191,2]
[392577199,1761684637434,-500.0,0.00022191,2]
[392577201,1761684637443,-500.0,0.00022191,2]
[392577203,1761684637452,-728.95,0.00022191,2]
[392577205,1761684637465,-500.0,0.00022191,2]
[392577207,1761684637475,-500.0,0.00022191,2]
[392577209,1761684637483,-500.0,0.00022191,2]
[392577211,1761684637492,-500.0,0.00022191,2]
[392577213,1761684637501,-500.0,0.00022191,2]
[392577215,1761684637514,-500.0,0.00022191,2]
[392577217,1761684637524,-500.0,0.00022191,2]
[392577219,1761684637533,-500.0,0.00022191,2]
[392577221,1761684637542,-500.0,0.00022191,2]
[392577223,1761684637551,-500.0,0.00022191,2]
[392577225,1761684637560,-500.0,0.00022191,2]
[392577227,1761684637569,-557.52,0.00022191,2]
[392577229,1761684637578,-500.0,0.00022191,2]
[392577231,1761684637589,-500.0,0.00022191,2]
[392577233,1761684637598,-502.08,0.00022191,2]
[392577235,1761684637607,-500.0,0.00022191,2]
[392577236,1761684637615,-500.0,0.00022191,2]
[392577238,1761684637625,-500.0,0.00022191,2]
[392577240,1761684637635,-500.0,0.00022191,2]
[392577242,1761684637644,-500.0,0.00022191,2]
[392577244,1761684637656,-500.0,0.00022191,2]
[392577247,1761684637665,-500.0,0.00022191,2]
[392577248,1761684637675,-500.0,0.00022191,2]
[392577251,1761684637685,-500.0,0.00022191,2]
[392577252,1761684637695,-628.01,0.00022191,2]
[392577254,1761684637706,-793.46,0.00022191,2]
[392577256,1761684637715,-500.0,0.00022191,2]
[392577258,1761684637725,-500.0,0.00022191,2]
[392577261,1761684637735,-500.0,0.00022191,2]
[392577263,1761684637745,-667.98,0.00022191,2]
[392577264,1761684637755,-500.0,0.00022191,2]
[392577266,1761684637764,-500.0,0.00022191,2]
[392577268,1761684637773,-500.0,0.00022191,2]
[392577270,1761684637783,-896.12,0.00022191,2]
[392577272,1761684637792,-500.0,0.00022191,2]
[392577274,1761684637802,-500.0,0.00022191,2]
[392577276,1761684637811,-500.0,0.00022191,2]
[392577278,1761684637821,-500.0,0.00022191,2]
[392577280,1761684637831,-515.05,0.00022191,2]
[392577282,1761684637841,-500.0,0.00022191,2]
[392577284,1761684637850,-500.0,0.00022191,2]
[392577286,1761684637860,-500.0,0.00022191,2]
[392577288,1761684637869,-500.0,0.00022191,2]
[392577290,1761684637879,-500.0,0.00022191,2]
[392577292,1761684637888,-536.02,0.00022191,2]
[392577294,1761684637900,-500.0,0.00022191,2]
[392577296,1761684637910,-513.34,0.00022191,2]
[392577298,1761684637919,-500.0,0.00022191,2]
[392577300,1761684637929,-500.0,0.00022191,2]
[392577302,1761684637939,-500.0,0.00022191,2]
[392577304,1761684637951,-500.0,0.00022191,2]
[392577306,1761684637961,-500.0,0.00022191,2]
[392577308,1761684637970,-546.28245619,0.00022191,2]
[392577310,1761684637981,-500.0,0.00022191,2]
[392577313,1761684637991,-500.0,0.00022191,2]
[392577315,1761684638001,-500.0,0.00022191,2]
[392577317,1761684638011,-443.72444268,0.00022191,2]
[392577319,1761684638021,-500.0,0.00022191,2]
[392577321,1761684638033,-500.0,0.00022191,2]
[392577323,1761684638042,-500.0,0.00022191,2]
[392577325,1761684638052,-500.0,0.00022191,2]
[392577327,1761684638062,-500.0,0.00022191,2]
[392577329,1761684638071,-500.0,0.00022191,2]
[392577330,1761684638081,-500.0,0.00022191,2]
[392577332,1761684638091,-624.67,0.00022191,2]
[392577334,1761684638101,-500.0,0.00022191,2]
[392577336,1761684638112,-854.24,0.00022191,2]
[392577339,1761684638122,-452.18088913,0.00022191,2]
[392577341,1761684638132,-482.66967824,0.00022191,2]
[392577343,1761684638142,-500.0,0.00022191,2]
[392577345,1761684638157,-995.13,0.00022191,2]
[392577347,1761684638167,-2418.13,0.00022191,2]
[392577349,1761684638177,-500.0,0.00022191,2]
[392577351,1761684638188,-500.0,0.00022191,2]
[392577353,1761684638199,-500.0,0.00022191,2]
[392577355,1761684638210,-500.0,0.00022191,2]
[392577357,1761684638221,-500.0,0.00022191,2]
[392577359,1761684638231,-500.0,0.00022191,2]
[392577361,1761684638242,-9442.78,0.00022191,2]
[392577363,1761684638253,-726.0,0.00022191,2]
[392577365,1761684638263,-509.83,0.00022191,2]
[392577367,1761684638273,-500.0,0.00022191,2]
[392577369,1761684638284,-696.15,0.00022191,2]
[392577371,1761684638294,-197.67963451,0.00022191,2]
[392577373,1761684638305,-1049.87,0.00022191,2]
[392577375,1761684638316,-500.0,0.00022191,2]
[392577377,1761684638327,-500.0,0.00022191,2]
[392577379,1761684638338,-500.0,0.00022191,2]
[392577381,1761684638349,-1006.51,0.00022191,2]
[392577383,1761684638360,-500.0,0.00022191,2]
[392577385,1761684638370,-812.22,0.00022191,2]
[392577387,1761684638381,-500.0,0.00022191,2]
[392577389,1761684638391,-523.85744362,0.00022191,2]
[392577391,1761684638404,-500.0,0.00022191,2]
[392577393,1761684638414,-500.0,0.00022191,2]
[392577395,1761684638424,-591.11,0.00022191,2]
[392577397,1761684638435,-500.0,0.00022191,2]
[392577398,1761684638445,-500.0,0.00022191,2]
[392577400,1761684638455,-1144.75,0.00022191,2]
[392577402,1761684638465,-500.0,0.00022191,2]
[392577405,1761684638476,-500.0,0.00022191,2]
[392577407,1761684638486,-677.49,0.00022191,2]
[392577409,1761684638496,-500.0,0.00022191,2]
[392577411,1761684638506,-500.0,0.00022191,2]
[392577413,1761684638520,-500.0,0.00022191,2]
[392577415,1761684638530,-878.79,0.00022191,2]
[392577416,1761684638540,-554.59,0.00022191,2]
[392577417,1761684638551,-826.78,0.00022191,2]
[392577418,1761684638561,-775.41,0.00022191,2]
[392577420,1761684638570,-595.87458635,0.00022191,2]
[392577421,1761684638579,-500.0,0.00022191,2]
[392577422,1761684638590,-500.0,0.00022191,2]
[392577423,1761684638599,-1677.72,0.00022191,2]
[392577424,1761684638608,-511.98,0.00022191,2]
[392577425,1761684638617,-500.0,0.00022191,2]
[392577426,1761684638627,-500.0,0.00022191,2]
[392577427,1761684638637,-957.05,0.00022191,2]
[392577428,1761684638649,-500.0,0.00022191,2]
[392577429,1761684638660,-500.0,0.00022191,2]
[392577430,1761684638831,-500.0,0.00022191,2]
[392577431,1761684638842,-500.0,0.00022191,2]
[392577432,1761684638851,-500.0,0.00022191,2]
[392577433,1761684638861,-751.61,0.00022191,2]
[392577434,1761684638870,-623.02,0.00022191,2]
[392577435,1761684638881,-984.99,0.00022191,2]
[392577436,1761684638890,-762.88,0.00022191,2]
[392577437,1761684638901,-500.0,0.00022191,2]
[392577438,1761684638911,-755.56,0.00022191,2]
[392577439,1761684638920,-500.0,0.00022191,2]
[392577440,1761684638930,-640.15,0.00022191,2]
[392577441,1761684638939,-500.0,0.00022191,2]
[392577442,1761684638949,-500.0,0.00022191,2]
[392577443,1761684638958,-1050.98,0.00022191,2]
[392577444,1761684638968,-500.0,0.00022191,2]
[392577445,1761684638977,-685.53,0.00022191,2]
[392577446,1761684638987,-696.01,0.00022191,2]
[392577447,1761684638997,-3716.26,0.00022191,2]
[392577448,1761684639006,-500.0,0.00022191,2]
[392577449,1761684639016,-500.0,0.00022191,2]
[392577450,1761684639029,-500.0,0.00022191,2]
[392577451,1761684639038,-500.0,0.00022191,2]
[392577452,1761684639048,-786.96,0.00022191,2]
[392577453,1761684639058,-1465.23,0.00022191,2]
[392577454,1761684639069,-500.0,0.00022191,2]
[392577455,1761684639080,-500.0,0.00022191,2]
[392577456,1761684639090,-500.0,0.00022191,2]
[392577457,1761684639101,-500.0,0.00022191,2]
[392577458,1761684639111,-500.0,0.00022191,2]
[392577459,1761684639121,-528.4,0.00022191,2]
[392577460,1761684639131,-500.0,0.00022191,2]
[392577461,1761684639141,-500.0,0.00022191,2]
[392577462,1761684639152,-891.88,0.00022191,2]
[392577463,1761684639161,-2371.14,0.00022191,2]
[392577464,1761684639171,-598.51,0.00022191,2]
[392577465,1761684639181,-500.0,0.00022191,2]
[392577466,1761684639193,-500.0,0.00022191,2]
[392577467,1761684639204,-741.68,0.00022191,2]
[392577468,1761684639215,-500.0,0.00022191,2]
[392577469,1761684639224,-597.78591467,0.00022191,2]
[392577470,1761684639237,-500.0,0.00022191,2]
[392577471,1761684639248,-500.0,0.00022191,2]
[392577472,1761684639258,-500.0,0.00022191,2]
[392577473,1761684639268,-1289.61,0.00022191,2]
[392577474,1761684639277,-584.89,0.00022191,2]
[392577475,1761684639287,-500.0,0.00022191,2]
[392577476,1761684639297,-500.0,0.00022191,2]
[392577477,1761684639306,-500.0,0.00022191,2]
[392577478,1761684639316,-960.71,0.00022191,2]
[392577479,1761684639326,-642.85,0.00022191,2]
[392577481,1761684639336,-1384.85,0.00022191,2]
[392577483,1761684639345,-500.0,0.00022191,2]
[392577484,1761684639355,-1494.95,0.00022191,2]
[392577485,1761684639365,-626.53580722,0.00022191,2]
[392577486,1761684639374,-526.78,0.00022191,2]
[392577488,1761684639384,-921.96,0.00022191,2]
[392577489,1761684639393,-500.0,0.00022191,2]
[392577490,1761684639405,-500.0,0.00022191,2]
[392577491,1761684639414,-500.0,0.00022191,2]
[392577492,1761684639423,-830.95,0.00022191,2]
[392577493,1761684639433,-500.0,0.00022191,2]
[392577494,1761684639443,-1687.31,0.00022191,2]
[392577495,1761684639452,-500.0,0.00022191,2]
[392577496,1761684639461,-500.0,0.00022191,2]
[392577497,1761684639470,-953.15,0.00022191,2]
[392577498,1761684639480,-2031.7,0.00022191,2]
[392577499,1761684639489,-500.0,0.00022191,2]
[392577500,1761684639498,-746.41,0.00022191,2]
[392577501,1761684639508,-1324.25,0.00022191,2]
[392577502,1761684639521,-920.67,0.00022191,2]
[392577503,1761684639530,-1110.59,0.00022191,2]
[392577504,1761684639540,-500.0,0.00022191,2]
[392577505,1761684639550,-500.0,0.00022191,2]
[392577506,1761684639559,-500.0,0.00022191,2]
[392577507,1761684639568,-996.9,0.00022191,2]
[392577508,1761684639578,-1509.24,0.00022191,2]
[392577509,1761684639588,-239.18692854,0.00022191,2]
[392577510,1761684639597,-555.99,0.00022191,2]
[392577511,1761684639607,-500.0,0.00022191,2]
[392577512,1761684639616,-1004.61,0.00022191,2]
[392577513,1761684639625,-669.33,0.00022191,2]
[392577514,1761684639635,-500.0,0.00022191,2]
[392577515,1761684639645,-597.66,0.00022191,2]
[392577516,1761684639656,-500.0,0.00022191,2]
[392577517,1761684639665,-522.76,0.00022191,2]
[392577518,1761684639676,-500.0,0.00022191,2]
[392577519,1761684639688,-668.12,0.00022191,2]
[392577520,1761684639708,-500.0,0.00022191,2]
[392577521,1761684639718,-966.05,0.00022191,2]
[392577522,1761684639727,-390.30132125,0.00022465,2]
[392577523,1761684639738,-540.46,0.00022465,2]
[392577524,1761684639748,-500.0,0.00022465,2]
[392577525,1761684639757,-500.0,0.00022465,2]
[392577526,1761684639766,-500.0,0.00022465,2]
[392577527,1761684639776,-500.0,0.00022465,2]
[392577528,1761684639786,-500.0,0.00022465,2]
[392577529,1761684639795,-575.48,0.00022465,2]
[392577530,1761684639804,-500.0,0.00022465,2]
[392577531,1761684639814,-500.0,0.00022465,2]
[392577532,1761684639823,-500.0,0.00022465,2]
[392577533,1761684639833,-500.0,0.00022465,2]
[392577534,1761684639843,-500.0,0.00022465,2]
[392577535,1761684639852,-500.0,0.00022465,2]
[392577536,1761684639861,-500.0,0.00022465,2]
[392577537,1761684639871,-500.0,0.00022465,2]
[392577538,1761684639885,-500.0,0.00022465,2]
[392577539,1761684639895,-500.0,0.00022465,2]
[392577540,1761684639906,-500.0,0.00022465,2]
[392577541,1761684639915,-500.0,0.00022465,2]
[392577542,1761684639925,-500.0,0.00022465,2]
[392577543,1761684639935,-594.14,0.00022465,2]
[392577544,1761684639944,-500.0,0.00022465,2]
[392577545,1761684639953,-500.0,0.00022465,2]
[392577546,1761684639963,-500.0,0.00022465,2]
[392577547,1761684639972,-500.0,0.00022465,2]
[392577548,1761684639982,-648.27,0.00022465,2]
[392577549,1761684639991,-2433.62,0.00022465,2]
[392577550,1761684640001,-500.0,0.00022465,2]
[392577551,1761684640011,-500.0,0.00022465,2]
[392577552,1761684640020,-500.0,0.00022465,2]
[392577553,1761684640030,-500.0,0.00022465,2]
[392577554,1761684640039,-500.0,0.00022465,2]
[392577555,1761684640049,-500.0,0.00022465,2]
[392577557,1761684640059,-500.0,0.00022465,2]
[392577558,1761684640068,-500.0,0.00022465,2]
[392577559,1761684640077,-500.0,0.00022465,2]
[392577560,1761684640087,-500.0,0.00022465,2]
[392577561,1761684640096,-500.0,0.00022465,2]
[392577562,1761684640105,-500.0,0.00022465,2]
[392577563,1761684640115,-500.0,0.00022465,2]
[392577564,1761684640125,-500.0,0.00022465,2]
[392577565,1761684640135,-500.0,0.00022465,2]
[392577566,1761684640144,-500.0,0.00022465,2]
[392577567,1761684640156,-500.0,0.00022465,2]
[392577568,1761684640165,-500.0,0.00022465,2]
[392577569,1761684640174,-500.0,0.00022465,2]
[392577570,1761684640183,-940.28,0.00022465,2]
[392577571,1761684640193,-500.0,0.00022465,2]
[392577572,1761684640202,-500.0,0.00022465,2]
[392577573,1761684640211,-500.0,0.00022465,2]
[392577574,1761684640221,-580.44,0.00022465,2]
[392577575,1761684640231,-500.0,0.00022465,2]
[392577576,1761684640241,-500.0,0.00022465,2]
[392577577,1761684640251,-500.0,0.00022465,2]
[392577578,1761684640260,-500.0,0.00022465,2]
[392577579,1761684640269,-500.0,0.00022465,2]
[392577580,1761684640279,-500.0,0.00022465,2]
[392577581,1761684640288,-500.0,0.00022465,2]
[392577582,1761684640298,-500.0,0.00022465,2]
[392577583,1761684640307,-500.0,0.00022465,2]
[392577584,1761684640316,-500.0,0.00022465,2]
[392577585,1761684640325,-463.79688589,0.00022465,2]
[392577586,1761684640334,-643.38028628,0.00022465,2]
[392577587,1761684640344,-500.0,0.00022465,2]
[392577588,1761684640354,-521.80353158,0.00022465,2]
[392577589,1761684640363,-728.95,0.00022465,2]
[392577590,1761684640373,-500.0,0.00022465,2]
[392577591,1761684640382,-500.0,0.00022465,2]
[392577592,1761684640392,-500.0,0.00022465,2]
[392577593,1761684640403,-500.0,0.00022465,2]
[392577594,1761684640413,-500.0,0.00022465,2]
[392577595,1761684640422,-500.0,0.00022465,2]
[392577596,1761684640432,-500.0,0.00022465,2]
[392577597,1761684640441,-282.47084104,0.00022465,2]
[392577598,1761684640451,-500.0,0.00022465,2]
[392577599,1761684640461,-500.0,0.00022465,2]
[392577600,1761684640471,-500.0,0.00022465,2]
[392577601,1761684640480,-557.52,0.00022465,2]
[392577602,1761684640490,-500.0,0.00022465,2]
[392577603,1761684640500,-500.0,0.00022465,2]
[392577604,1761684640513,-502.08,0.00022465,2]
[392577605,1761684640522,-500.0,0.00022465,2]
[392577606,1761684640531,-227.8598896,0.00022465,2]
[392577607,1761684640540,-442.55348044,0.00022465,2]
[392577608,1761684640550,-500.0,0.00022465,2]
[392577609,1761684640560,-500.0,0.00022465,2]
[392577610,1761684640569,-500.0,0.00022465,2]
[392577611,1761684640578,-500.0,0.00022465,2]
[392577612,1761684640589,-500.0,0.00022465,2]
[392577613,1761684640599,-500.0,0.00022465,2]
[392577614,1761684640608,-628.01,0.00022465,2]
[392577615,1761684640617,-793.46,0.00022465,2]
[392577616,1761684640627,-471.74916828,0.00022465,2]
[392577617,1761684640636,-500.0,0.00022465,2]
[392577618,1761684640646,-500.0,0.00022465,2]
[392577619,1761684640658,-667.98,0.00022465,2]
[392577620,1761684640668,-500.0,0.00022465,2]
[392577621,1761684640677,-500.0,0.00022465,2]
[392577622,1761684640687,-500.0,0.00022465,2]
[392577623,1761684640697,-896.12,0.00022465,2]
[392577624,1761684640707,-500.0,0.00022465,2]
[392577625,1761684640716,-500.0,0.00022465,2]
[392577626,1761684640725,-500.0,0.00022465,2]
[392577627,1761684640735,-500.0,0.00022465,2]
[392577628,1761684640744,-515.05,0.00022465,2]
[392577629,1761684640753,-500.0,0.00022465,2]
[392577630,1761684640762,-500.0,0.00022465,2]
[392577631,1761684640771,-500.0,0.00022465,2]
[392577632,1761684640780,-500.0,0.00022465,2]
[392577633,1761684640790,-500.0,0.00022465,2]
[392577634,1761684640800,-536.02,0.00022465,2]
[392577635,1761684640809,-239.63410053,0.00022465,2]
[392577636,1761684640818,-513.34,0.00022465,2]
[392577637,1761684640829,-500.0,0.00022465,2]
[392577638,1761684640838,-500.0,0.00022465,2]
[392577639,1761684640847,-500.0,0.00022465,2]
[392577640,1761684640856,-618.89910677,0.00022465,2]
[392577641,1761684640865,-500.0,0.00022465,2]
[392577642,1761684640875,-500.0,0.00022465,2]
[392577643,1761684640884,-500.0,0.00022465,2]
[392577644,1761684640893,-500.0,0.00022465,2]
[392577645,1761684640904,-500.0,0.00022465,2]
[392577646,1761684640914,-500.0,0.00022465,2]
[392577647,1761684640924,-500.0,0.00022465,2]
[392577648,1761684640933,-500.0,0.00022465,2]
[392577649,1761684640942,-500.0,0.00022465,2]
[392577650,1761684640952,-500.0,0.00022465,2]
[392577651,1761684640960,-500.0,0.00022465,2]
[392577652,1761684640971,-624.67,0.00022465,2]
[392577653,1761684640980,-854.24,0.00022465,2]
[392577654,1761684640989,-500.0,0.00022465,2]
[392577655,1761684641000,-500.0,0.00022465,2]
[392577656,1761684641009,-995.13,0.00022465,2]
[392577657,1761684641019,-2418.13,0.00022465,2]
[392577658,1761684641028,-500.0,0.00022465,2]
[392577659,1761684641037,-500.0,0.00022465,2]
[392577660,1761684641047,-500.0,0.00022465,2]
[392577661,1761684641056,-500.0,0.00022465,2]
[392577662,1761684641065,-500.0,0.00022465,2]
[392577663,1761684641075,-500.0,0.00022465,2]
[392577664,1761684641084,-9442.78,0.00022465,2]
[392577665,1761684641093,-726.0,0.00022465,2]
[392577666,1761684641103,-509.83,0.00022465,2]
[392577668,1761684641112,-500.0,0.00022465,2]
[392577669,1761684641128,-696.15,0.00022465,2]
[392577671,1761684641142,-1049.87,0.00022465,2]
[392577673,1761684641152,-500.0,0.00022465,2]
[392577675,1761684641161,-500.0,0.00022465,2]
[392577677,1761684641171,-500.0,0.00022465,2]
[392577678,1761684641180,-500.0,0.00022465,2]
[392577680,1761684641189,-1006.51,0.00022465,2]
[392577681,1761684641198,-812.22,0.00022465,2]
[392577682,1761684641207,-500.0,0.00022465,2]
[392577683,1761684641216,-500.0,0.00022465,2]